[Event "Early-Titled-Tuesday-Blitz-March-05-2024"]
[Site "Chess.com"]
[Date "2024.03.05"]
[Round "6"]
[White "LuisFSiles"]
[Black "tolimachess"]
[Result "0-1"]
[WhiteElo "2246"]
[BlackElo "2421"]
[TimeControl "180+1"]
[EndTime "9:08:46 PST"]
[Termination "tolimachess won by resignation"]

1. e4 {[%clk 0:03:00.9]} 1... c5 {[%clk 0:01:52.3]} 2. Nf3 {[%clk 0:02:58.8]}
2... Nc6 {[%clk 0:01:49.9]} 3. d4 {[%clk 0:02:57.2]} 3... cxd4 {[%clk
0:01:50.8]} 4. Nxd4 {[%clk 0:02:53.1]} 4... Qb6 {[%clk 0:01:50.5]} 5. Nb3 {[%clk
0:02:52.1]} 5... e6 {[%clk 0:01:49.5]} 6. Nc3 {[%clk 0:02:51]} 6... a6 {[%clk
0:01:48.2]} 7. Be3 {[%clk 0:01:36.7]} 7... Qc7 {[%clk 0:01:47.9]} 8. Bd3 {[%clk
0:01:36.8]} 8... Nf6 {[%clk 0:01:46.2]} 9. O-O {[%clk 0:01:34.8]} 9... b5 {[%clk
0:01:44.2]} 10. a3 {[%clk 0:01:34.1]} 10... d6 {[%clk 0:01:44]} 11. f4 {[%clk
0:01:33.5]} 11... Bb7 {[%clk 0:01:40.8]} 12. Qf3 {[%clk 0:01:33.5]} 12... Be7
{[%clk 0:01:39.8]} 13. Kh1 {[%clk 0:01:31.7]} 13... O-O {[%clk 0:01:39.1]} 14.
Rae1 {[%clk 0:01:31.4]} 14... Rac8 {[%clk 0:01:35.7]} 15. Qh3 {[%clk 0:01:29.4]}
15... b4 {[%clk 0:01:30.8]} 16. axb4 {[%clk 0:01:22.1]} 16... Nxb4 {[%clk
0:01:31.7]} 17. e5 {[%clk 0:01:16]} 17... Nxd3 {[%clk 0:00:55.2]} 18. cxd3
{[%clk 0:00:30.3]} 18... Nd5 {[%clk 0:00:52.8]} 19. Bd4 {[%clk 0:00:21.4]} 19...
dxe5 {[%clk 0:00:44.8]} 20. Bxe5 {[%clk 0:00:20.1]} 20... Bd6 {[%clk 0:00:44.5]}
21. Nd4 {[%clk 0:00:19.1]} 21... Nxc3 {[%clk 0:00:40.9]} 22. bxc3 {[%clk
0:00:19.4]} 22... Bxe5 {[%clk 0:00:34.1]} 23. fxe5 {[%clk 0:00:18.9]} 23... Qxc3
{[%clk 0:00:34.7]} 24. Nf3 {[%clk 0:00:12.9]} 24... Bxf3 {[%clk 0:00:32.4]} 25.
gxf3 {[%clk 0:00:10.9]} 25... Qxd3 {[%clk 0:00:32.1]} 26. Rg1 {[%clk 0:00:11.4]}
26... g6 {[%clk 0:00:30.8]} 27. Re4 {[%clk 0:00:09.8]} 27... Rc3 {[%clk
0:00:28.3]} 28. Rf4 {[%clk 0:00:09.1]} 28... Qe3 {[%clk 0:00:25.8]} 29. Qg4
{[%clk 0:00:08.6]} 29... Rc1 {[%clk 0:00:24.8]} 30. Rxc1 {[%clk 0:00:06.9]}
30... Qxc1+ {[%clk 0:00:25.7]} 31. Kg2 {[%clk 0:00:07.2]} 31... Rd8 {[%clk
0:00:24.6]} 32. Rd4 {[%clk 0:00:03.2]} 32... Qb2+ {[%clk 0:00:23.3]} 33. Kg3
{[%clk 0:00:01.5]} 0-1

[Event "Early-Titled-Tuesday-Blitz-March-05-2024"]
[Site "Chess.com"]
[Date "2024.03.05"]
[Round "6"]
[White "maciek_92"]
[Black "awesomevishesh"]
[Result "1-0"]
[WhiteElo "2880"]
[BlackElo "2647"]
[TimeControl "180+1"]
[EndTime "9:08:51 PST"]
[Termination "maciek_92 won on time"]

1. c4 {[%clk 0:03:00.9]} 1... Nf6 {[%clk 0:02:44.5]} 2. Nc3 {[%clk 0:03:00.7]}
2... g6 {[%clk 0:02:42]} 3. g3 {[%clk 0:03:00.7]} 3... Bg7 {[%clk 0:02:40.9]} 4.
Bg2 {[%clk 0:03:01.3]} 4... O-O {[%clk 0:02:35.5]} 5. d4 {[%clk 0:03:01.9]} 5...
d6 {[%clk 0:02:35.3]} 6. e3 {[%clk 0:03:02.4]} 6... Nc6 {[%clk 0:02:30.5]} 7.
Nge2 {[%clk 0:03:02.2]} 7... e5 {[%clk 0:02:28.9]} 8. O-O {[%clk 0:03:02.4]}
8... Bd7 {[%clk 0:01:55.3]} 9. h3 {[%clk 0:02:57.5]} 9... a6 {[%clk 0:01:49.1]}
10. Kh2 {[%clk 0:02:52.3]} 10... Rb8 {[%clk 0:01:15.5]} 11. a4 {[%clk
0:02:51.2]} 11... Re8 {[%clk 0:01:10.3]} 12. a5 {[%clk 0:02:49.4]} 12... h5
{[%clk 0:00:55.8]} 13. d5 {[%clk 0:02:31.9]} 13... Nb4 {[%clk 0:00:45.6]} 14. e4
{[%clk 0:02:31.8]} 14... c5 {[%clk 0:00:43.9]} 15. Be3 {[%clk 0:02:23.2]} 15...
b5 {[%clk 0:00:37.9]} 16. axb6 {[%clk 0:02:23.1]} 16... Qxb6 {[%clk 0:00:37.6]}
17. Qd2 {[%clk 0:02:22.4]} 17... a5 {[%clk 0:00:36.3]} 18. f4 {[%clk 0:02:11.8]}
18... exf4 {[%clk 0:00:32.7]} 19. Rxf4 {[%clk 0:02:07]} 19... Nh7 {[%clk
0:00:27.2]} 20. Raf1 {[%clk 0:02:05.4]} 20... Rf8 {[%clk 0:00:20.7]} 21. R4f2
{[%clk 0:02:02.5]} 21... Rbe8 {[%clk 0:00:16.5]} 22. Bh6 {[%clk 0:01:50.8]}
22... Qd8 {[%clk 0:00:15.9]} 23. Bf4 {[%clk 0:01:18.5]} 23... Be5 {[%clk
0:00:14.7]} 24. h4 {[%clk 0:01:13.2]} 24... Nf6 {[%clk 0:00:12.3]} 25. Bf3
{[%clk 0:01:01]} 25... Ng4+ {[%clk 0:00:09.4]} 26. Bxg4 {[%clk 0:01:01.2]} 26...
Bxg4 {[%clk 0:00:09.6]} 27. Bxe5 {[%clk 0:00:59.6]} 27... Rxe5 {[%clk
0:00:09.5]} 28. Nf4 {[%clk 0:00:56.2]} 28... Qe7 {[%clk 0:00:09.3]} 29. Ng2
{[%clk 0:00:53.4]} 29... Qd7 {[%clk 0:00:07.9]} 30. Ne3 {[%clk 0:00:48.6]} 30...
Bh3 {[%clk 0:00:08]} 31. Ra1 {[%clk 0:00:49.1]} 31... Ra8 {[%clk 0:00:04.3]} 32.
Rf6 {[%clk 0:00:44.2]} 32... Bg4 {[%clk 0:00:04]} 33. Raf1 {[%clk 0:00:42]}
33... Rf8 {[%clk 0:00:03.3]} 34. Nxg4 {[%clk 0:00:39.7]} 34... Qxg4 {[%clk
0:00:02.6]} 35. Rxd6 {[%clk 0:00:37.7]} 35... f5 {[%clk 0:00:01.5]} 36. Rf4
{[%clk 0:00:36.8]} 1-0

[Event "Early-Titled-Tuesday-Blitz-March-05-2024"]
[Site "Chess.com"]
[Date "2024.03.05"]
[Round "6"]
[White "LiamPutnam2008"]
[Black "FredddieCroderg"]
[Result "1-0"]
[WhiteElo "2890"]
[BlackElo "2292"]
[TimeControl "180+1"]
[EndTime "9:08:54 PST"]
[Termination "LiamPutnam2008 won on time"]

1. e4 {[%clk 0:03:00.9]} 1... c6 {[%clk 0:02:59.4]} 2. d4 {[%clk 0:03:00.4]}
2... d5 {[%clk 0:02:59.4]} 3. f3 {[%clk 0:03:01.2]} 3... Qb6 {[%clk 0:02:56.3]}
4. Nc3 {[%clk 0:03:01.1]} 4... dxe4 {[%clk 0:02:56.1]} 5. fxe4 {[%clk
0:03:01.3]} 5... e5 {[%clk 0:02:56.3]} 6. Nf3 {[%clk 0:02:38.8]} 6... exd4
{[%clk 0:02:55.4]} 7. Nxd4 {[%clk 0:02:39.7]} 7... Bc5 {[%clk 0:02:52.6]} 8. Na4
{[%clk 0:02:31.3]} 8... Qa5+ {[%clk 0:02:43.6]} 9. c3 {[%clk 0:02:29.6]} 9...
Bd6 {[%clk 0:02:42.9]} 10. b4 {[%clk 0:02:00.6]} 10... Qc7 {[%clk 0:02:41.3]}
11. Qh5 {[%clk 0:01:32.3]} 11... Nf6 {[%clk 0:02:32.7]} 12. Qh4 {[%clk
0:01:32.5]} 12... Nbd7 {[%clk 0:02:24.8]} 13. Nf5 {[%clk 0:01:31.5]} 13... O-O
{[%clk 0:02:10.2]} 14. Be2 {[%clk 0:01:00.3]} 14... Re8 {[%clk 0:01:55.2]} 15.
Qg5 {[%clk 0:00:50.6]} 15... g6 {[%clk 0:01:35.5]} 16. Nh6+ {[%clk 0:00:50.3]}
16... Kg7 {[%clk 0:01:27.4]} 17. O-O {[%clk 0:00:49.4]} 17... Re5 {[%clk
0:01:15.7]} 18. Nf5+ {[%clk 0:00:44.3]} 18... Kh8 {[%clk 0:01:13.3]} 19. Nxd6
{[%clk 0:00:34.9]} 19... Rxg5 {[%clk 0:01:05]} 20. Nxf7+ {[%clk 0:00:35.1]}
20... Kg7 {[%clk 0:01:04.9]} 21. Nxg5 {[%clk 0:00:36]} 21... Nb6 {[%clk
0:00:51.3]} 22. Nc5 {[%clk 0:00:35.4]} 22... Qe7 {[%clk 0:00:46.5]} 23. Be3
{[%clk 0:00:31.8]} 23... h6 {[%clk 0:00:39.2]} 24. Bd4 {[%clk 0:00:32.1]} 24...
hxg5 {[%clk 0:00:35.8]} 25. Rxf6 {[%clk 0:00:32]} 25... Qxf6 {[%clk 0:00:35.2]}
26. Rf1 {[%clk 0:00:32.7]} 26... Qxd4+ {[%clk 0:00:33.9]} 27. cxd4 {[%clk
0:00:33.6]} 27... a5 {[%clk 0:00:27.4]} 28. b5 {[%clk 0:00:32.3]} 28... a4
{[%clk 0:00:21.8]} 29. bxc6 {[%clk 0:00:30.9]} 29... bxc6 {[%clk 0:00:21.5]} 30.
Rb1 {[%clk 0:00:25.1]} 30... Rb8 {[%clk 0:00:12.2]} 31. Nxa4 {[%clk 0:00:22.9]}
31... Nd7 {[%clk 0:00:11]} 32. Rxb8 {[%clk 0:00:23.8]} 32... Nxb8 {[%clk
0:00:11]} 33. Nc5 {[%clk 0:00:24.7]} 33... Kf6 {[%clk 0:00:09.7]} 34. a4 {[%clk
0:00:25.3]} 34... g4 {[%clk 0:00:07.3]} 35. a5 {[%clk 0:00:25.8]} 35... Kg5
{[%clk 0:00:06.2]} 36. a6 {[%clk 0:00:26.2]} 36... Kf4 {[%clk 0:00:06.3]} 37.
Kf2 {[%clk 0:00:26]} 37... Nxa6 {[%clk 0:00:03.2]} 38. g3+ {[%clk 0:00:25.7]}
38... Kg5 {[%clk 0:00:02.8]} 39. Bxa6 {[%clk 0:00:26.6]} 1-0

[Event "Early-Titled-Tuesday-Blitz-March-05-2024"]
[Site "Chess.com"]
[Date "2024.03.05"]
[Round "6"]
[White "viviania"]
[Black "AttackSparrow"]
[Result "1-0"]
[WhiteElo "2898"]
[BlackElo "2647"]
[TimeControl "180+1"]
[EndTime "9:08:55 PST"]
[Termination "viviania won by resignation"]

1. Nf3 {[%clk 0:02:59.2]} 1... d5 {[%clk 0:02:59.8]} 2. c4 {[%clk 0:02:59]} 2...
d4 {[%clk 0:02:59.9]} 3. b4 {[%clk 0:02:58.4]} 3... g5 {[%clk 0:03:00]} 4. Qb3
{[%clk 0:02:57.2]} 4... Bg7 {[%clk 0:02:57.2]} 5. Nxg5 {[%clk 0:02:53.9]} 5...
e5 {[%clk 0:02:56]} 6. d3 {[%clk 0:02:47.2]} 6... Ne7 {[%clk 0:02:39.5]} 7. g3
{[%clk 0:02:42.9]} 7... a5 {[%clk 0:02:20.3]} 8. b5 {[%clk 0:02:42.4]} 8... h6
{[%clk 0:02:10]} 9. Nf3 {[%clk 0:02:40.2]} 9... c5 {[%clk 0:02:02.5]} 10. bxc6
{[%clk 0:02:28.6]} 10... Nbxc6 {[%clk 0:02:00.4]} 11. Bg2 {[%clk 0:02:28.6]}
11... O-O {[%clk 0:01:58.5]} 12. Nbd2 {[%clk 0:02:27.4]} 12... Ng6 {[%clk
0:01:51.7]} 13. Ba3 {[%clk 0:02:25.8]} 13... Re8 {[%clk 0:01:48.6]} 14. Ne4
{[%clk 0:02:25.7]} 14... Nb4 {[%clk 0:01:39.6]} 15. Nfd2 {[%clk 0:02:02]} 15...
f5 {[%clk 0:01:32]} 16. Nc5 {[%clk 0:02:02]} 16... Qe7 {[%clk 0:01:09.7]} 17.
Na4 {[%clk 0:01:56.5]} 17... Be6 {[%clk 0:01:08.9]} 18. Nb6 {[%clk 0:01:54.1]}
18... Ra6 {[%clk 0:00:29]} 19. Nd5 {[%clk 0:01:51.4]} 19... Bxd5 {[%clk
0:00:29.5]} 20. Bxd5+ {[%clk 0:01:50.8]} 20... Kh7 {[%clk 0:00:30.4]} 21. O-O
{[%clk 0:01:45.2]} 21... Bf8 {[%clk 0:00:16.4]} 22. Bg2 {[%clk 0:01:30.9]} 22...
Rb8 {[%clk 0:00:14]} 23. c5 {[%clk 0:01:26]} 23... Qxc5 {[%clk 0:00:07.6]} 24.
Qf7+ {[%clk 0:01:22.9]} 24... Bg7 {[%clk 0:00:08.1]} 25. Qxf5 {[%clk 0:01:23]}
25... Rf6 {[%clk 0:00:06.5]} 26. Qg4 {[%clk 0:01:18.2]} 26... Qc3 {[%clk
0:00:07.4]} 27. Bxb4 {[%clk 0:01:09.2]} 27... Qxb4 {[%clk 0:00:08.3]} 28. Ne4
{[%clk 0:01:05.1]} 28... Ra6 {[%clk 0:00:08.7]} 29. Rac1 {[%clk 0:00:57]} 29...
Qe7 {[%clk 0:00:08.9]} 30. Rc2 {[%clk 0:00:56]} 30... Rd8 {[%clk 0:00:07.6]} 31.
Rfc1 {[%clk 0:00:55.3]} 31... Rd7 {[%clk 0:00:08.2]} 32. Bh3 {[%clk 0:00:53.2]}
32... Rd8 {[%clk 0:00:06.6]} 33. Rc7 {[%clk 0:00:52.5]} 33... Qf8 {[%clk
0:00:07.3]} 34. Rxb7 {[%clk 0:00:43.9]} 34... Rb8 {[%clk 0:00:07.3]} 35. Qd7
{[%clk 0:00:38.9]} 35... Rxb7 {[%clk 0:00:07]} 36. Qxb7 {[%clk 0:00:39]} 36...
Ra8 {[%clk 0:00:07]} 37. Rc7 {[%clk 0:00:36.7]} 37... Re8 {[%clk 0:00:06.3]} 38.
Rxg7+ {[%clk 0:00:30.9]} 38... Qxg7 {[%clk 0:00:04.3]} 39. Nf6+ {[%clk
0:00:30.8]} 39... Kh8 {[%clk 0:00:04.8]} 40. Qxg7+ {[%clk 0:00:30.6]} 40... Kxg7
{[%clk 0:00:05.7]} 41. Nxe8+ {[%clk 0:00:30.8]} 1-0

[Event "Early-Titled-Tuesday-Blitz-March-05-2024"]
[Site "Chess.com"]
[Date "2024.03.05"]
[Round "6"]
[White "SergioMoralesG"]
[Black "Azalea95"]
[Result "0-1"]
[WhiteElo "2494"]
[BlackElo "2366"]
[TimeControl "180+1"]
[EndTime "9:08:55 PST"]
[Termination "Azalea95 won by resignation"]

1. d4 {[%clk 0:03:00.9]} 1... Nf6 {[%clk 0:02:59.8]} 2. c4 {[%clk 0:03:00]} 2...
e6 {[%clk 0:03:00]} 3. Nf3 {[%clk 0:03:00.5]} 3... d5 {[%clk 0:03:00.2]} 4. Nc3
{[%clk 0:03:01.1]} 4... dxc4 {[%clk 0:03:00.6]} 5. e4 {[%clk 0:03:00.2]} 5... b5
{[%clk 0:03:00.8]} 6. e5 {[%clk 0:03:00.8]} 6... Nd5 {[%clk 0:03:00.9]} 7. Nxb5
{[%clk 0:03:00.7]} 7... Nb6 {[%clk 0:03:01.3]} 8. Be2 {[%clk 0:03:01.3]} 8...
Nc6 {[%clk 0:02:58.9]} 9. Be3 {[%clk 0:03:01.5]} 9... Be7 {[%clk 0:02:57.2]} 10.
O-O {[%clk 0:03:01.3]} 10... O-O {[%clk 0:02:57]} 11. Nc3 {[%clk 0:03:01.9]}
11... Rb8 {[%clk 0:02:53]} 12. b3 {[%clk 0:03:02.2]} 12... Bb4 {[%clk
0:02:42.4]} 13. Ne4 {[%clk 0:02:57.2]} 13... cxb3 {[%clk 0:02:40.8]} 14. axb3
{[%clk 0:02:55.8]} 14... a5 {[%clk 0:02:31.8]} 15. Qc2 {[%clk 0:02:52.9]} 15...
Bb7 {[%clk 0:02:25.1]} 16. Nfg5 {[%clk 0:02:50.5]} 16... g6 {[%clk 0:02:03.4]}
17. Nf6+ {[%clk 0:02:48.5]} 17... Kg7 {[%clk 0:02:03.7]} 18. Qe4 {[%clk
0:02:21.4]} 18... h6 {[%clk 0:01:19.8]} 19. Nxe6+ {[%clk 0:01:37.5]} 19... fxe6
{[%clk 0:01:19.6]} 20. Bxh6+ {[%clk 0:01:36.9]} 20... Kf7 {[%clk 0:01:20.3]} 21.
Qf4 {[%clk 0:01:22.3]} 21... Qxd4 {[%clk 0:01:03.3]} 22. Ne4+ {[%clk 0:01:01.5]}
22... Kg8 {[%clk 0:00:42.8]} 23. Bxf8 {[%clk 0:00:57.3]} 23... Rxf8 {[%clk
0:00:42]} 24. Nf6+ {[%clk 0:00:54.9]} 24... Kg7 {[%clk 0:00:31.5]} 25. Qg3
{[%clk 0:00:21.2]} 25... Qxe5 {[%clk 0:00:29.2]} 26. Nh5+ {[%clk 0:00:17.8]}
26... Kh7 {[%clk 0:00:25.9]} 27. f4 {[%clk 0:00:15.3]} 27... Qxe2 {[%clk
0:00:23.6]} 28. Rae1 {[%clk 0:00:01.9]} 28... Qxh5 {[%clk 0:00:23]} 29. Rxe6
{[%clk 0:00:01.7]} 29... Nd4 {[%clk 0:00:17.8]} 30. Kh1 {[%clk 0:00:02.3]} 30...
Nxe6 {[%clk 0:00:17.1]} 31. Rd1 {[%clk 0:00:02.8]} 31... Qxd1+ {[%clk
0:00:16.5]} 0-1

[Event "Early-Titled-Tuesday-Blitz-March-05-2024"]
[Site "Chess.com"]
[Date "2024.03.05"]
[Round "6"]
[White "tylityli"]
[Black "UnTucopalaTimba"]
[Result "1-0"]
[WhiteElo "2307"]
[BlackElo "2001"]
[TimeControl "180+1"]
[EndTime "9:08:55 PST"]
[Termination "tylityli won on time"]

1. d4 {[%clk 0:03:00.9]} 1... Nf6 {[%clk 0:02:59.6]} 2. c4 {[%clk 0:02:59.3]}
2... e6 {[%clk 0:02:59.5]} 3. Nc3 {[%clk 0:02:59.2]} 3... Bb4 {[%clk 0:02:59.2]}
4. e3 {[%clk 0:02:59]} 4... O-O {[%clk 0:02:58.6]} 5. Ne2 {[%clk 0:02:59.9]}
5... d5 {[%clk 0:02:55.4]} 6. a3 {[%clk 0:03:00.2]} 6... Be7 {[%clk 0:02:53.4]}
7. cxd5 {[%clk 0:03:00]} 7... exd5 {[%clk 0:02:53.3]} 8. g3 {[%clk 0:03:00.9]}
8... c6 {[%clk 0:02:52.5]} 9. Bg2 {[%clk 0:03:00.8]} 9... Re8 {[%clk 0:02:51.1]}
10. O-O {[%clk 0:03:01.7]} 10... Bd6 {[%clk 0:02:50.9]} 11. f3 {[%clk
0:03:01.9]} 11... b6 {[%clk 0:02:38.4]} 12. e4 {[%clk 0:03:00.9]} 12... dxe4
{[%clk 0:02:38]} 13. fxe4 {[%clk 0:03:00.4]} 13... Bc7 {[%clk 0:02:23.4]} 14.
Bg5 {[%clk 0:02:59.1]} 14... h6 {[%clk 0:02:22.3]} 15. Bxf6 {[%clk 0:02:37.7]}
15... gxf6 {[%clk 0:02:22.2]} 16. Qd2 {[%clk 0:02:27.9]} 16... Kh7 {[%clk
0:02:17.6]} 17. e5 {[%clk 0:02:22.8]} 17... f5 {[%clk 0:02:10.2]} 18. h4 {[%clk
0:01:52.2]} 18... Rxe5 {[%clk 0:02:06.3]} 19. Rad1 {[%clk 0:01:32]} 19... Re8
{[%clk 0:01:56.2]} 20. Nf4 {[%clk 0:01:28.7]} 20... Bxf4 {[%clk 0:01:33.4]} 21.
Rxf4 {[%clk 0:01:27.4]} 21... Rg8 {[%clk 0:01:26.5]} 22. Kh2 {[%clk 0:01:26]}
22... Qf6 {[%clk 0:01:14.9]} 23. d5 {[%clk 0:01:20.9]} 23... Bb7 {[%clk
0:01:09.7]} 24. d6 {[%clk 0:01:19.8]} 24... Nd7 {[%clk 0:01:08.7]} 25. Bh3
{[%clk 0:01:12.7]} 25... Qe5 {[%clk 0:00:41.8]} 26. Bxf5+ {[%clk 0:01:08.4]}
26... Kh8 {[%clk 0:00:41.5]} 27. Bxd7 {[%clk 0:01:08.5]} 27... c5 {[%clk
0:00:30.5]} 28. Bh3 {[%clk 0:00:53.2]} 28... Rxg3 {[%clk 0:00:17.5]} 29. Kxg3
{[%clk 0:00:51.7]} 29... Rg8+ {[%clk 0:00:17.1]} 30. Kf2 {[%clk 0:00:45.5]}
30... Qg7 {[%clk 0:00:10]} 31. Qe3 {[%clk 0:00:41.8]} 31... f5 {[%clk 0:00:07]}
32. d7 {[%clk 0:00:36.8]} 32... Rd8 {[%clk 0:00:06.6]} 33. Rxf5 {[%clk
0:00:28.7]} 33... Rxd7 {[%clk 0:00:01.5]} 34. Rxd7 {[%clk 0:00:26.6]} 1-0

[Event "Early-Titled-Tuesday-Blitz-March-05-2024"]
[Site "Chess.com"]
[Date "2024.03.05"]
[Round "6"]
[White "Bauman_Guy"]
[Black "FairChess_on_YouTube"]
[Result "0-1"]
[WhiteElo "2919"]
[BlackElo "3109"]
[TimeControl "180+1"]
[EndTime "9:08:57 PST"]
[Termination "FairChess_on_YouTube won by resignation"]

1. e4 {[%clk 0:03:00.9]} 1... c5 {[%clk 0:02:59.5]} 2. Nf3 {[%clk 0:03:00.8]}
2... e6 {[%clk 0:02:59.9]} 3. d4 {[%clk 0:03:01.2]} 3... cxd4 {[%clk 0:03:00.8]}
4. Nxd4 {[%clk 0:03:02]} 4... Nc6 {[%clk 0:03:01.3]} 5. Nc3 {[%clk 0:03:02.1]}
5... a6 {[%clk 0:03:00.8]} 6. g3 {[%clk 0:02:57.6]} 6... Qc7 {[%clk 0:02:58.2]}
7. Bg2 {[%clk 0:02:57.2]} 7... Nf6 {[%clk 0:02:58.7]} 8. O-O {[%clk 0:02:56.9]}
8... Nxd4 {[%clk 0:02:59]} 9. Qxd4 {[%clk 0:02:57.8]} 9... Bc5 {[%clk
0:02:59.1]} 10. Qd3 {[%clk 0:02:57.5]} 10... d6 {[%clk 0:02:53.1]} 11. Be3
{[%clk 0:02:46]} 11... Bxe3 {[%clk 0:02:51.7]} 12. Qxe3 {[%clk 0:02:46.4]} 12...
O-O {[%clk 0:02:50.9]} 13. Rfd1 {[%clk 0:02:41.1]} 13... e5 {[%clk 0:02:48.9]}
14. Rd2 {[%clk 0:02:35.6]} 14... Be6 {[%clk 0:02:46.9]} 15. Rad1 {[%clk
0:02:35.6]} 15... Rfd8 {[%clk 0:02:47.1]} 16. h3 {[%clk 0:02:28.1]} 16... b5
{[%clk 0:02:46.9]} 17. b3 {[%clk 0:02:24.6]} 17... Rac8 {[%clk 0:02:43]} 18. Ne2
{[%clk 0:02:24.6]} 18... Qa5 {[%clk 0:02:22.3]} 19. Rxd6 {[%clk 0:02:07.3]}
19... Rxd6 {[%clk 0:02:18.5]} 20. Rxd6 {[%clk 0:02:08.2]} 20... h6 {[%clk
0:02:03.7]} 21. c3 {[%clk 0:01:33.8]} 21... Qxa2 {[%clk 0:02:00.9]} 22. b4
{[%clk 0:01:33.8]} 22... Qa1+ {[%clk 0:01:44.9]} 23. Kh2 {[%clk 0:01:27]} 23...
Bc4 {[%clk 0:01:38.6]} 24. Ng1 {[%clk 0:01:18.7]} 24... Be6 {[%clk 0:01:27]} 25.
Ne2 {[%clk 0:01:17.1]} 25... Qe1 {[%clk 0:01:16.1]} 26. Rxa6 {[%clk 0:00:58.9]}
26... Rd8 {[%clk 0:01:15.9]} 27. Nd4 {[%clk 0:00:33.7]} 27... Qxe3 {[%clk
0:01:11.6]} 28. fxe3 {[%clk 0:00:34.6]} 28... exd4 {[%clk 0:01:06.9]} 29. exd4
{[%clk 0:00:35.5]} 29... Bc4 {[%clk 0:01:04.5]} 30. Rc6 {[%clk 0:00:33.9]} 30...
Ra8 {[%clk 0:00:50.7]} 31. e5 {[%clk 0:00:32]} 31... Bd5 {[%clk 0:00:51]} 32.
exf6 {[%clk 0:00:23]} 32... Ra2 {[%clk 0:00:41.5]} 33. Rc8+ {[%clk 0:00:22.3]}
33... Kh7 {[%clk 0:00:41.9]} 34. Rc5 {[%clk 0:00:18.2]} 34... Rxg2+ {[%clk
0:00:37]} 35. Kh1 {[%clk 0:00:18.4]} 35... Bf3 {[%clk 0:00:35]} 36. Rf5 {[%clk
0:00:18.4]} 36... Rxg3+ {[%clk 0:00:33.6]} 37. Kh2 {[%clk 0:00:17.7]} 37... Rg2+
{[%clk 0:00:34]} 38. Kh1 {[%clk 0:00:18.2]} 38... Ba8 {[%clk 0:00:29.9]} 39. d5
{[%clk 0:00:15.9]} 39... Rg5 {[%clk 0:00:26.8]} 40. Rxg5 {[%clk 0:00:14.1]}
40... hxg5 {[%clk 0:00:26.9]} 41. fxg7 {[%clk 0:00:15]} 41... Bxd5+ {[%clk
0:00:26.8]} 42. Kg1 {[%clk 0:00:15.9]} 42... Kxg7 {[%clk 0:00:27.4]} 43. Kf2
{[%clk 0:00:16.8]} 43... f6 {[%clk 0:00:27.7]} 44. Ke3 {[%clk 0:00:17.7]} 44...
Bc4 {[%clk 0:00:28.3]} 45. Kd4 {[%clk 0:00:18.6]} 45... Kg6 {[%clk 0:00:28.9]}
0-1

[Event "Early-Titled-Tuesday-Blitz-March-05-2024"]
[Site "Chess.com"]
[Date "2024.03.05"]
[Round "6"]
[White "aljado"]
[Black "yuriydovzik"]
[Result "1-0"]
[WhiteElo "2067"]
[BlackElo "2090"]
[TimeControl "180+1"]
[EndTime "9:08:57 PST"]
[Termination "aljado won on time"]

1. e4 {[%clk 0:03:00.9]} 1... c6 {[%clk 0:02:58.7]} 2. d4 {[%clk 0:02:59.7]}
2... Na6 {[%clk 0:02:58.4]} 3. Nf3 {[%clk 0:02:57.5]} 3... d6 {[%clk 0:02:52.5]}
4. Nc3 {[%clk 0:02:55.4]} 4... Nc7 {[%clk 0:02:50.3]} 5. Be2 {[%clk 0:02:54.9]}
5... Bg4 {[%clk 0:02:48.6]} 6. O-O {[%clk 0:02:54.7]} 6... g6 {[%clk 0:02:48.2]}
7. h3 {[%clk 0:02:54]} 7... Bxf3 {[%clk 0:02:47.7]} 8. Bxf3 {[%clk 0:02:53.7]}
8... Bg7 {[%clk 0:02:47.5]} 9. Be3 {[%clk 0:02:52.3]} 9... e6 {[%clk 0:02:37.6]}
10. Qd2 {[%clk 0:02:51.8]} 10... h5 {[%clk 0:02:29.6]} 11. Rad1 {[%clk
0:02:43.6]} 11... d5 {[%clk 0:02:25.3]} 12. exd5 {[%clk 0:02:41.5]} 12... cxd5
{[%clk 0:02:16.6]} 13. Na4 {[%clk 0:02:37.4]} 13... b6 {[%clk 0:02:08.2]} 14. c4
{[%clk 0:02:33.1]} 14... Ne7 {[%clk 0:02:07.3]} 15. Bg5 {[%clk 0:02:27.9]} 15...
Qd7 {[%clk 0:01:58.2]} 16. Nc3 {[%clk 0:02:21.6]} 16... f6 {[%clk 0:01:35.1]}
17. Bf4 {[%clk 0:02:17.3]} 17... Rd8 {[%clk 0:01:27.1]} 18. Bxc7 {[%clk
0:02:12.3]} 18... Qxc7 {[%clk 0:01:25.5]} 19. cxd5 {[%clk 0:02:12.8]} 19... Nxd5
{[%clk 0:01:11.3]} 20. Bxd5 {[%clk 0:01:58]} 20... exd5 {[%clk 0:01:09.9]} 21.
Rfe1+ {[%clk 0:01:56.2]} 21... Kf7 {[%clk 0:01:09.7]} 22. Rc1 {[%clk 0:01:45.3]}
22... Qd7 {[%clk 0:01:03.3]} 23. a4 {[%clk 0:01:39.8]} 23... Bh6 {[%clk
0:01:00.1]} 24. f4 {[%clk 0:01:37.1]} 24... Rhe8 {[%clk 0:00:55.4]} 25. Rxe8
{[%clk 0:01:33.8]} 25... Rxe8 {[%clk 0:00:53.2]} 26. g3 {[%clk 0:01:30.8]} 26...
h4 {[%clk 0:00:51.6]} 27. Qg2 {[%clk 0:01:27.8]} 27... hxg3 {[%clk 0:00:46.3]}
28. Nxd5 {[%clk 0:01:25.9]} 28... Bxf4 {[%clk 0:00:36.4]} 29. Qf3 {[%clk
0:01:09.7]} 29... g5 {[%clk 0:00:18.3]} 30. Qh5+ {[%clk 0:00:47.8]} 30... Kg7
{[%clk 0:00:16.3]} 31. Nxf4 {[%clk 0:00:45.5]} 31... gxf4 {[%clk 0:00:12.2]} 32.
d5 {[%clk 0:00:36.9]} 32... Re5 {[%clk 0:00:09.4]} 33. Qf3 {[%clk 0:00:31.2]}
33... Qxd5 {[%clk 0:00:07]} 34. Qg4+ {[%clk 0:00:27.8]} 34... Rg5 {[%clk
0:00:04.7]} 35. Rc8 {[%clk 0:00:21.9]} 1-0